Workbook

Sheet справочные данные
A2: выход спирта с 1 кг сахарозы | D2: 0.682 | F2: Ферменты | L2: солод
A3: выход спирта с 1 кг крахмала | D3: 0.798 | F3: название | G3: актитвность ед./г см3 | H3: Расход ед./г крахмала(max) | I3: Расход г/кг крахмала(max) | J3: занимает мл 1 грамм | L3: вид солода | M3: осахаривающая способность (ОСп ед/г)
A4: коэффициэнт пересчета крахмала в условный сахар | D4: =D3/D2 -> 1.170087977 | M4: хороший | N4: средний | O4: удов-ный
A5: пересчет сахара в условный крахмал | D5: =D2/D3 -> 0.8546365915 | F5: Амилосубтилин | G5: 1500 | H5: 2 | I5: 1.3 | J5: 1.785 | L5: солод ячменный | M5: 5 | N5: 3.9 | O5: 2.8
F6: Глюкаваморин | G6: 3000 | H6: 6.2 | I6: 2.1 | J6: 1.851 | L6: солод пшеничный | M6: 3.5 | N6: 2.6 | O6: 1.75
A7: Потери сахара % | F7: Протосубтилин | G7: 120 | H7: 0.5 | I7: 4.2 | J7: 1.47 | L7: срлод ржаной | M7: 3.5 | N7: 2.6 | O7: 1.75
A8: Потери непредотвратимые | F8: Целлолюкс | G8: 2000 | H8: 15 | I8: 7.5 | J8: 1.47 | L8: солод кукурузный | M8: 1 | N8: 0.75 | O8: 0.5
A9: синтез биомассы дрожжей | C9: =расчеты!B43 -> 0 | L9: солод просяной | M9: 1 | N9: 0.75 | O9: 0
A10: на образование вторичных продуктов | C10: 5.5 | E10: норма с учетом сырья | F10: Дрожжи | H10: норма расхода г на 1 л сусла | J10: предельная спиртуозность | L10: солод овсяный | M10: 2.5 | N10: 2 | O10: 1.5
A11: с углекислотой | C11: 1 | E11: =IF(расчеты!$B$46="сахар",1*$H11,$H11/$J$15) -> 1.333333333 | F11: сухие хлебопекарские дрожжи | H11: 4 | J11: 12 | L11: примечание
A12: Итого | C12: =SUM(C9:C11) -> 6.5 | E12: =IF(расчеты!$B$46="сахар",1*$H12,$H12/$J$15) -> 6.666666667 | F12: пресованные хлебопекарские | H12: 20 | J12: 12 | L12: 1 активная еденица расщепляет крахмала в г | O12: 1
A13: Потери дополнительные (криворукость) | C13: 5 | E13: =H13 -> 0.2 | F13: винные дрожжи | H13: 0.2 | J13: 18
A14: Всего потерь | C14: =SUM(C12:C13) -> 11.5 | E14: =H14 -> 2 | F14: спиртовые дрожжи | H14: 2 | J14: 20
A15: Потери при перегонке | C15: 5 | F15: норма засева г/л | G15: 4.52 | H15: множитель для зерна | J15: 3
A16: 1 | B16: 2 | C16: 3 | D16: 4 | E16: 5 | F16: 6 | G16: 7 | H16: 8 | I16: 9 | J16: 10 | K16: 11 | L16: 12
A17: сырье | B17: выход в литрах АС с 1 кг сырья | C17: удельная плотность | D17: крахмал % | E17: белок % | F17: прочие НПС (ксиланы, β-глюкан, пектины) | G17: жиры | H17: сахара | I17: целлюлоза | J17: зола | K17: коэф. пенообразования | L17: ОСп ед/г (согласно выбранному качеству) | N17: параметры сусла | O17: Плотность (насыпная) сырья
A18: сырье не выбрано | B18: 0 | C18: 1.4 | D18: 0 | K18: 1.5 | N18: основные | O18: сахар | P18: 1.4
A19: свой вариант сырья | B19: =D19/100*B21 -> 0.5586 | C19: 1.4 | D19: =главная_страница!C18 -> 70 | E19: =главная_страница!C19 -> 12 | H19: =главная_страница!C21 -> 3 | I19: =главная_страница!C20 -> 3 | K19: 2 | N19: объем сусла (л) | O19: мука | P19: 1.6
A20: сахар | B20: =D2 -> 0.682 | C20: 1.4 | D20: 0 | E20: 0 | F20: 0 | G20: 0 | H20: 100 | I20: 0 | J20: 0 | K20: 1.5 | N20: сахаристость сусла % мас | O20: зерно | P20: 1.6
A21: крахмал | B21: =D3 -> 0.798 | C21: 1.4 | D21: 100 | K21: 2 | N21: гидромодуль
A22: мука пшеничная в/с | B22: =($D22/100*1.17+$H22/100)*$B$20 -> 0.54954878 | C22: 1.6 | D22: 68.7 | E22: 10.3 | F22: 2 | G22: 1.1 | H22: 0.2 | I22: 0.1 | J22: 0.55 | K22: 3 | N22: спиртуозность браги в % об
A23: мука пшеничная 1/с | B23: =($D23/100*1.17+$H23/100)*$B$20 -> 0.53882774 | C23: 1.6 | D23: 67.1 | E23: 10.6 | F23: 2.5 | G23: 1.3 | H23: 0.5 | I23: 0.3 | J23: 0.75 | K23: 3 | N23: дополнительные
A24: мука пшеничная 2/с | B24: 0.50724432 | C24: 1.6 | D24: 62.8 | E24: 11.7 | F24: 3.5 | G24: 1.8 | H24: 0.9 | I24: 0.8 | J24: 1.25 | K24: 3 | N24: пеногаситель
A25: мука пшеничная об. | B25: 0.45207052 | C25: 1.6 | D25: 55.8 | E25: 11.5 | F25: 7.2 | G25: 2.1 | H25: 1 | I25: 2.3 | J25: 1.9 | K25: 3 | N25: применяется
A26: мука ржаная сеян. | B26: 0.51226384 | C26: 1.6 | D26: 63.6 | E26: 6.9 | F26: 4.5 | G26: 1.4 | H26: 0.7 | I26: 0.4 | J26: 0.75 | K26: 6 | N26: не используется
A27: мука ржаная обдирная | B27: 0.47931642 | C27: 1.6 | D27: 59.3 | E27: 8.9 | F27: 6 | G27: 1.7 | H27: 0.9 | I27: 1.3 | J27: 1.45 | K27: 6 | N27: ферменты
A28: мука ржаная обойная | B28: =($D28/100*1.17+$H28/100)*$B$20 -> 0.4536664 | C28: 1.6 | D28: 56 | E28: 13.5 | F28: 8.5 | G28: 1.9 | H28: 1 | I28: 2.2 | J28: 1.9 | K28: 6 | N28: солод хороший
A29: рис | B29: 0.62486204 | C29: 1.6 | D29: 76.6 | E29: 7.4 | F29: 5 | G29: 0.4 | H29: 2 | I29: 0.8 | J29: 0.7 | K29: 2 | N29: солод средний
A30: ячмень (зерно, крупа) | B30: 0.39676714 | C30: 1.6 | D30: 48.1 | E30: 10.3 | F30: 10.5 | G30: 3.9 | H30: 1.9 | I30: 5.9 | J30: 1.7 | K30: 2 | N30: солод удовлетворительный
A31: кукуруза (зерно, крупа) | B31: 0.48808012 | C31: 1.6 | D31: 59.8 | E31: 8.3 | F31: 5.9 | G31: 4 | H31: 1.6 | I31: 2.4 | J31: 1.24 | K31: 2 | N31: дрожжи
A32: рожь (зерно, крупа) | B32: 0.4422088 | C32: 1.6 | D32: 52 | E32: 11.8 | F32: 10.2 | G32: 1.8 | H32: 4 | I32: 2.1 | J32: 1.61 | K32: 3 | N32: сухие хлебопекарские дрожжи
A33: пшеница (зерно, крупа) | B33: 0.4411176 | C33: 1.6 | D33: 54 | E33: 9.9 | F33: 7.5 | G33: 2.2 | H33: 1.5 | I33: 3.7 | J33: 1.68 | K33: 1.5 | N33: пресованные хлебопекарские
A34: горох (цельный, крупа) | B34: 0.3770096 | C34: 1.6 | D34: 44 | E34: 20.5 | F34: 5 | G34: 2 | H34: 3.8 | I34: 2.2 | J34: 1.9 | K34: 1.5 | N34: винные дрожжи
A35: пшено (просо) | B35: 0.44943118 | C35: 1.6 | D35: 54.7 | E35: 11.2 | F35: 5 | G35: 3.9 | H35: 1.9 | I35: 10 | J35: 1.7 | K35: 2 | N35: спиртовые дрожжи | O35: коэффициэнт
A36: солод ячменный | B36: =($D36/100*1.17+$H36/100)*$B$20 -> 0.39676714 | C36: 1.6 | D36: 48.1 | E36: 10.3 | F36: 10.5 | G36: 3.9 | H36: 1.9 | I36: 5.9 | J36: 1.7 | K36: 2 | L36: =IF(главная_страница!$F$6="солод хороший",$M5,IF(главная_страница!$F$6="солод средний",$N5,IF(главная_страница!$F$6="солод удовлетворительный",$O5,))) -> 5 | N36: Возраст ферментов | O36: 1
A37: солод пшеничный | B37: 0.4411176 | C37: 1.6 | D37: 54 | E37: 9.9 | F37: 7.5 | G37: 2.2 | H37: 1.5 | I37: 3.7 | J37: 1.68 | K37: 2 | L37: =IF(главная_страница!$F$6="солод хороший",$M6,IF(главная_страница!$F$6="солод средний",$N6,IF(главная_страница!$F$6="солод удовлетворительный",$O6,))) -> 3.5 | N37: свеженькие - менее 3 месяцев | O37: 1.5
A38: срлод ржаной | B38: 0.4422088 | C38: 1.6 | D38: 52 | E38: 11.8 | F38: 10.2 | G38: 1.8 | H38: 4 | I38: 2.1 | J38: 1.61 | K38: 2 | L38: =IF(главная_страница!$F$6="солод хороший",$M7,IF(главная_страница!$F$6="солод средний",$N7,IF(главная_страница!$F$6="солод удовлетворительный",$O7,))) -> 3.5 | N38: около полугода | O38: 2
A39: солод кукурузный | B39: 0.48808012 | C39: 1.6 | D39: 59.8 | E39: 8.3 | F39: 5.9 | G39: 4 | H39: 1.6 | I39: 2.4 | J39: 1.24 | K39: 2 | L39: =IF(главная_страница!$F$6="солод хороший",$M8,IF(главная_страница!$F$6="солод средний",$N8,IF(главная_страница!$F$6="солод удовлетворительный",$O8,))) -> 1 | N39: около года, но хранились нормально | O39: 3
A40: солод просяной | B40: 0.44943118 | C40: 1.6 | D40: 54.7 | E40: 11.2 | F40: 5 | G40: 3.9 | H40: 1.9 | I40: 10 | J40: 1.7 | K40: 2 | L40: =IF(главная_страница!$F$6="солод хороший",$M9,IF(главная_страница!$F$6="солод средний",$N9,IF(главная_страница!$F$6="солод удовлетворительный",$O9,))) -> 1 | N40: более года хранились хрен знает как))) | O40: 1000000
A41: солод овсяный | B41: 0.332816 | C41: 1.6 | D41: 40 | E41: 13 | F41: 8 | G41: 7 | H41: 2 | I41: 1.4 | J41: 2 | K41: 2 | L41: =IF(главная_страница!$F$6="солод хороший",$M10,IF(главная_страница!$F$6="солод средний",$N10,IF(главная_страница!$F$6="солод удовлетворительный",$O10,))) -> 2.5 | N41: еще от прадеда достались
A42: отруби пшеничные | B42: 0.1943359 | C42: 1.6 | D42: 23.5 | E42: 15.1 | F42: 10 | G42: 3.8 | H42: 1 | I42: 43.6 | J42: 2 | K42: 2 | N42: Тип осахаривания
A43: греча | B43: 0.4251588 | C43: 1.6 | D43: 52 | E43: 10.8 | F43: 5 | G43: 3.2 | H43: 1.5 | I43: 1.5 | J43: 1.8 | K43: 2 | N43: ГОС | O43: 1
A44: *** резерв *** | B44: 0 | C44: 1.6 | K44: 2 | N44: ХОС | O44: 2
A45: *** резерв *** | B45: 0 | C45: 1.6 | K45: 2 | N45: Запас
A46: *** резерв *** | B46: 0 | C46: 1.6 | K46: 2 | N46: Заводская дозировка | O46: 1
A47: *** резерв *** | B47: 0 | C47: 1.6 | K47: 2 | N47: Запас 25% | O47: 1.25
A48: *** резерв *** | B48: 0 | C48: 1.6 | K48: 2 | N48: Запас 50% | O48: 1.5
N49: Запас_1
N50: Стандартная дозировка | O50: 1
N51: Запас 25% | O51: 1.25
N52: Запас 50% | O52: 1.5
N53: Запас 75 % | O53: 1.75
N54: Запас 100% | O54: 2
N55: потери_сахаров
N56: не учитываются
N57: учитываются

Sheet главная_страница
A1: Дата и время | C1: 2016-03-10T13:00:21 | E1: Калькулятор заторов
A2: Сырье для затора | E2: Параметры затора
A3: № | B3: Компонент | C3: вес в кг | E3: гидромодуль | F3: 5
A4: 1 | B4: сырье не выбрано | E4: дрожжи | F4: пресованные хлебопекарские
A5: 2 | B5: отруби пшеничные | C5: 10 | E5: пеногаситель | F5: не используется
A6: 3 | B6: сырье не выбрано | E6: качество солода | F6: солод хороший
A7: 4 | B7: сырье не выбрано | E7: возраст ферментов | F7: свеженькие - менее 3 месяцев
A8: 5 | B8: сырье не выбрано | E8: тип осахаривания (ГОС, ХОС) | F8: ХОС
A9: 6 | B9: сырье не выбрано | E9: "Запас" в дозировке ферментов | F9: Заводская дозировка
A10: 7 | B10: сырье не выбрано | E10: "Запас" в дозировке дрожжей | F10: Стандартная дозировка
A11: 8 | B11: сырье не выбрано | E11: Потери сахаров (стандартные) | F11: учитываются
A12: 9 | B12: сырье не выбрано | E12: Результаты кратенько
A13: 10 | B13: сырье не выбрано | E13: объем сусла (л) | F13: =IF(E3="объем сусла (л)",F3,IF(E3="сахаристость сусла % мас",расчеты!B8*100/главная_страница!F3,IF(E3="гидромодуль",расчеты!B14*главная_страница!F3+расчеты!B10,IF(E3="спиртуозность браги в % об",(расчеты!B3*100)/F3,)))) -> 56.25
A14: Если выбрано свое сырье, то укажите примерное содержание в нем в % | E14: теоретическая сахаристость сусла % мас | F14: =расчеты!B8*100/F13 -> 5.066145324
E15: теоретическая спиртуозность браги % об | F15: =IF(F11="учитываются",расчеты!B4*100/F13,расчеты!B3*100/F13) -> 3.057773333
E16: гидромодуль | F16: =(F13-расчеты!B10)/расчеты!B14 -> 5
E17: Объем тары под это сусло | F17: =IF(F5="не используется",расчеты!B18,расчеты!B19) -> 70.3125
A18: крахмала | C18: 70 | E18: Выход АС с нашей засыпи (л) | F18: =IF(F11="учитываются",расчеты!B4,расчеты!B3) -> 1.7199975
A19: белка | C19: 12 | E19: расход ферментов | F19: в граммах
A20: целлюлозы | C20: 3 | E20: Амилосубтилин | F20: =IF(расчеты!$D30>1000000," без проверки использовать нельзя!",расчеты!$I30) -> 6.11
A21: сахаров | C21: 3 | E21: Глюкаваморин | F21: =IF(расчеты!$D31>1000000," без проверки использовать нельзя!",расчеты!$I31) -> 9.87
E22: Протосубтилин | F22: =IF(расчеты!$D32>1000000," без проверки использовать нельзя!",расчеты!$I32) -> 12.684
E23: Целлолюкс | F23: =IF(расчеты!$D33>1000000," без проверки использовать нельзя!",расчеты!$I33) -> 80.4
B24: полный объем емкости | C24: =F17 -> 70.3125 | E24: расход ферментов | F24: в мл
B25: сколько литров запаса оставили (под пену) | C25: =C24-F13 -> 14.0625 | E25: Амилосубтилин | F25: =F20*'справочные данные'!J5 -> 10.90635
E26: Глюкаваморин | F26: =F21*'справочные данные'!J6 -> 18.26937
E27: Протосубтилин | F27: =F22*'справочные данные'!J7 -> 18.64548
E28: Целлолюкс | F28: =F23*'справочные данные'!J8 -> 118.188
E29: расход дрожжей (г)
E30: =F4 -> пресованные хлебопекарские | F30: =расчеты!B45 -> 375
A33: Общий итог
A34: Итак, мы собираемся смешать следующие ингридиенты: | E34: И получим :
A35: засыпь | E35: Сусло
A36: 1 | B36: =IF($B4="сырье не выбрано","-",$B4) -> - | C36: =IF($B36="-","-",$C4) -> - | D36: =IF($C36="-","-","кг") -> - | E36: Объем сусла (л) | F36: =F13 -> 56.25
A37: 2 | B37: =IF($B5="сырье не выбрано","-",$B5) -> отруби пшеничные | C37: =IF($B37="-","-",$C5) -> 10 | D37: =IF($C37="-","-","кг") -> кг | E37: Сахаристость сусла у нас получилась | F37: =F14 -> 5.066145324
A38: 3 | B38: =IF($B6="сырье не выбрано","-",$B6) -> - | C38: =IF($B38="-","-",$C6) -> - | D38: =IF($C38="-","-","кг") -> - | E38: Объем тары под это сусло необходим (л) | F38: =F17 -> 70.3125
A39: 4 | B39: - | C39: - | D39: - | E39: Брага
A40: 5 | B40: - | C40: - | D40: - | E40: спиртуозность браги составит | F40: =F15 -> 3.057773333
A41: 6 | B41: - | C41: - | D41: - | E41: Выход спирта
A42: 7 | B42: - | C42: - | D42: - | E42: теоретический (невозможен в принципе) | F42: =расчеты!B3 -> 1.9435
A43: 8 | B43: - | C43: - | D43: - | E43: с учетом стандартных потерь | F43: =расчеты!B4 -> 1.7199975
A44: 9 | B44: - | C44: - | D44: - | E44: Выход после перегонки | F44: =F43-((F43*'справочные данные'!C15)/100) -> 1.633997625
A45: 10 | B45: - | C45: - | D45: - | E45: Потери
A46: общий вес засыпи составит (кг) | E46: К стандартным потерям относятся (% потерь от общего сахара в сусле):
A47: =расчеты!B14 -> 10 | E47: Синтез биомассы дрожжей | F47: ='справочные данные'!C9 -> 0
A48: общий объем засыпи составит (л) | E48: Образование вторичных продуктов бр-я | F48: ='справочные данные'!C10 -> 5.5
A49: =расчеты!B10 -> 6.25 | E49: С углекислотой | F49: ='справочные данные'!C11 -> 1
A50: вода | E50: Неучитываемые потери (криворукость) | F50: ='справочные данные'!C13 -> 5
A51: Воды (л) на данную засыпь мы используем | D51: =расчеты!B20 -> 50 | E51: Общая величина потерь в % | F51: ='справочные данные'!C14 -> 11.5
A52: Гидромодуль при этом будет такой | D52: =F16 -> 5 | E52: Прочие потери (% от АС содержащегося в браге)
A53: пеногаситель | E53: Потери при перегонке | F53: ='справочные данные'!C15 -> 5
A54: Мы решили что пеногаситель у нас | D54: =F5 -> не используется | E54: Примечание
A55: =IF(D54="не используется","Поэтому объем тары под сусло придется взять с запасом...","Потому запас под пену можно оставить поменьше!") -> Поэтому объем тары под сусло придется взять с запасом...
A56: Запас под пену возьмем с учетом этого (%) | D56: =IF(D54="применяется",расчеты!B36*100,расчеты!B17) -> 20 | E56: =IF(D87>D86,расчеты!A95,расчеты!A96) -> В целом затор сбаллансирован. Принципиальных замечаний нет.
A57: Расход пеногасителя будет (мл) | D57: =IF(D54="не используется","0",расчеты!B16) -> 0
A58: Ферменты | E58: =IF(D87>D86,расчеты!B28,"") -> 
A59: Судя по засыпи нашу будущую брагу можно назвать так: | E59: =IF(D87>D86,расчеты!A97,"") -> 
A60: =расчеты!D74 -> зерновая без солода | C60: =расчеты!E74 ->  | E60: =IF(D87>D86,расчеты!B26,"") -> 
A61: Классификация, конечно условная))) | E61: =IF(D87>D86,расчеты!A98,"") -> 
A62: =IF(A60="сахарная",расчеты!A86,расчеты!A85) -> Раз сусло содержит крахмал то нам потребуются ферменты.
A65: Расход микробилогических ферментов (г)
A66: Амилосубтилин | D66: =F20 -> 6.11
A67: Глюкаваморин | D67: =F21 -> 9.87
A68: Протосубтилин | D68: =F22 -> 12.684
A69: Целлолюкс | D69: =F23 -> 80.4
A70: =IF(A60="солодовая",расчеты!A90,"***************") -> ***************
A71: =IF(A60="солодовая",расчеты!B48,"***************") -> ***************
A72: =IF(A60="солодовая",расчеты!A91,"***************") -> ***************
A73: =IF(A60="солодовая",расчеты!B49,"***************") -> ***************
A74: =IF(A60="солодовая",расчеты!A92,"***************") -> ***************
A75: =IF(A60="солодовая",расчеты!B52,"***************") -> ***************
A76: =IF(A60="солодовая",расчеты!A87,IF(A60="зерновая без солода",расчеты!A88,IF(A60="сахарная",расчеты!A89))) -> Микробиологические ферменты указаны в данном случае с учетом их свежести. Со временем при хранении ферменты теряют активность. Обязательными ферментами являются А и Г. П и Ц факультативные.
A84: Дрожжи
A85: Выбрали мы | C85: =F4 -> пресованные хлебопекарские
A86: Максимальная крепость браги для них | D86: =расчеты!B24 -> 12
A87: У нас же теоретически может набродить | D87: =F15 -> 3.057773333
A88: =IF(D87<=D86,расчеты!A94,расчеты!A93) -> Расчетная спиртуозность не превышает предельной для дрожжей. Должно все полно выбродить.
A94: расход дрожжей (г) | D94: =F30 -> 375

Sheet расчеты
A2: Итог
A3: Выход АС теоретический | B3: =B8*'справочные данные'!D2 -> 1.9435
A4: Выход АС с учетом потерь | B4: =B9*'справочные данные'!D2 -> 1.7199975
A5: крахмала в засыпи | B5: =SUM(B62:K62) -> 2.35
A6: свободных сахаров | B6: =SUM(B61:K61) -> 0.1
A7: сахаров условных (из крахмала) | B7: =SUM(B66:K66) -> 2.749706745
A8: сахаров в сусле всего (сахаристость)кг | B8: =SUM(B67:K67) -> 2.849706745
A9: сахаров в сусле всего (сахаристость)кг с учетом потерь | B9: =B8-((B8*'справочные данные'!C14)/100) -> 2.521990469
A10: обьем занимаемый засыпью в сусле (л) | B10: =SUM(B57:K57) -> 6.25
A11: белка в засыпи | B11: =SUM(B63:K63) -> 1.51
A12: сырой клетчатки в засыпи | B12: =SUM(B64:K64) -> 4.36
A13: НПС | B13: =SUM(B65:K65) -> 1
A14: Вес засыпи | B14: =SUM(B58:K58) -> 10
A15: коэффициэнт пенообразования общий | B15: =(SUM(B69:K69))/B14 -> 2
A16: расход пеногасителя в мл на затор | B16: =(главная_страница!F13*(расчеты!B35/100))*расчеты!B15 -> 5.625
A17: оставить места под пену (без п/г) в % | B17: =(B15*B36)*100 -> 20
A18: Требуется емкость под затор без п/г | B18: =(главная_страница!F13*100)/(100-расчеты!B17) -> 70.3125
A19: Требуется емкость под затор с п/г | B19: =(главная_страница!F13*100)/(100-B36*100) -> 62.5
A20: Воды расходуется (л) | B20: =B21-B10 -> 50
A21: общий объем сусла (л) | B21: =главная_страница!F13 -> 56.25
A22: Выбранные дрожжи | B22: =главная_страница!F4 -> пресованные хлебопекарские
A23: Расход дрожжей | B23: =главная_страница!F30 -> 375
A24: рекомендуемая итоговая спиртуозность браги | B24: =VLOOKUP(B22,'справочные данные'!F11:J14,5,0) -> 12
A25: Реальная спиртуозность | B25: =главная_страница!F15 -> 3.057773333
A26: Максимальный выход спирта в реальности | B26: =IF(B24<B25,(B24*B21)/100,(B25*B21)/100) -> 1.7199975
A27: Это соответствует сброженному сахару (кг) | B27: =B26/'справочные данные'!D2 -> 2.521990469
A28: Недобродило сахара (кг) | B28: =B9-B27 -> 0
A29: Расход ферментов (г) | C29: коэф. Свежести | D29: расход с коэф. Свежести | E29: коэф запаса | F29: расход с коэф. Запаса | G29: коэф типа затора | H29: расход с коэф. Типа затора | I29: общий расход
A30: АмилоЛюкс | B30: =B52*'справочные данные'!I5 -> 3.055 | C30: =IF(главная_страница!F7="свеженькие - менее 3 месяцев",'справочные данные'!O36,IF(главная_страница!F7="около полугода",'справочные данные'!O37,IF(главная_страница!F7="около года, но хранились нормально",'справочные данные'!O38,IF(главная_страница!F7="более года хранились хрен знает как)))",'справочные данные'!O39,IF(главная_страница!F7="еще от прадеда достались",'справочные данные'!O40,))))) -> 1 | D30: =$C30*$B30 -> 3.055 | E30: =IF(главная_страница!F9="Заводская дозировка",'справочные данные'!O46,IF(главная_страница!F9="Запас 25%",'справочные данные'!O47,IF(главная_страница!F9="Запас 50%",'справочные данные'!O48,))) -> 1 | F30: =$D30*$E30 -> 3.055 | G30: =IF(главная_страница!F8="ГОС",'справочные данные'!O43,'справочные данные'!O44) -> 2 | H30: =$F30*$G30 -> 6.11 | I30: =$H30 -> 6.11
A31: Глюкаваморин | B31: =B52*'справочные данные'!I6 -> 4.935 | C31: =$C30 -> 1 | D31: =$C31*$B31 -> 4.935 | E31: =$E$30 -> 1 | F31: =$D31*$E31 -> 4.935 | G31: =$G$30 -> 2 | H31: =$F31*$G31 -> 9.87 | I31: =$H31 -> 9.87
A32: Протосубтилин | B32: =B11*'справочные данные'!I7 -> 6.342 | C32: =$C31 -> 1 | D32: =$C32*$B32 -> 6.342 | E32: =$E$30 -> 1 | F32: 6.342 | G32: =$G$30 -> 2 | H32: 12.684 | I32: 12.684
A33: Целлолюкс | B33: =(B12+B13)*'справочные данные'!I8 -> 40.2 | C33: 1 | D33: =$C33*$B33 -> 40.2 | E33: 1 | F33: 40.2 | G33: 2 | H33: 80.4 | I33: 80.4
A35: Расход пеногасителя на 100 литров затора | B35: 5
A36: Незаполненный остаток емкости под пену | B36: 0.1
A38: Расход дрожжей
A39: =главная_страница!F4 -> пресованные хлебопекарские | B39: =(IF(A39="пресованные хлебопекарские",'справочные данные'!E12,IF(A39="сухие хлебопекарские дрожжи",'справочные данные'!E11,IF(A39="винные дрожжи",'справочные данные'!E13,IF(A39="спиртовые дрожжи",'справочные данные'!E14,)))))*B21 -> 375
A40: "норма" плотности засева г/сусле (конечная численность) | B40: =B21*'справочные данные'!G15 -> 254.25
A41: сколько прирастет дрожжей г | B41: =IF((B40-B45)>0,B40-B45,0) -> 0
A42: максимальные потери на биосинтез массы дрожжей % | B42: 4
A43: в нашем случае потери в % | B43: =(B41*B42)/B40 -> 0
A44: процент расхода | B44: =IF(главная_страница!F10="Стандартная дозировка",'справочные данные'!O50,IF(главная_страница!F10="Запас 25%",'справочные данные'!O51,IF(главная_страница!F10="Запас 50%",'справочные данные'!O52,IF(главная_страница!F10="Запас 75%",'справочные данные'!O53,IF(главная_страница!F10="Запас 100%",'справочные данные'!O54,))))) -> 1
A45: расход с запасом | B45: =(B39*B44) -> 375
A46: наличие сахара | B46: =IF(ISNA(VLOOKUP("сахар",главная_страница!B36:B45,1,0)),0,VLOOKUP("сахар",главная_страница!B36:B45,1,0)) -> 0
A47: Солод
A48: Активных едениц всего | B48: =SUM(B71:K71) -> 0
A49: Осахарит крахмала (кг) | B49: =(B48*'справочные данные'!O12)/1000 -> 0
A50: крахмала в засыпи | B50: =B5 -> 2.35
A51: коэф. избытка солода | B51: =B49/B50 -> 0
A52: остается необработанного крахмала | B52: =IF((B50-B49)>0,B50-B49,0) -> 2.35
B54: №1 | C54: №2 | D54: №3 | E54: №4 | F54: №5 | G54: №6 | H54: №7 | I54: №8 | J54: №9 | K54: №10
A55: сырье | B55: =главная_страница!$B4 -> сырье не выбрано | C55: =главная_страница!$B5 -> отруби пшеничные | D55: =главная_страница!$B6 -> сырье не выбрано | E55: =главная_страница!$B7 -> сырье не выбрано | F55: =главная_страница!$B8 -> сырье не выбрано | G55: =главная_страница!$B9 -> сырье не выбрано | H55: =главная_страница!$B10 -> сырье не выбрано | I55: =главная_страница!$B11 -> сырье не выбрано | J55: =главная_страница!$B12 -> сырье не выбрано | K55: =главная_страница!$B13 -> сырье не выбрано
A56: удельная плотность | B56: =VLOOKUP(B$55,'справочные данные'!$A$18:$L$48,3,0) -> 1.4 | C56: =VLOOKUP(C$55,'справочные данные'!$A$18:$L$48,3,0) -> 1.6 | D56: =VLOOKUP(D$55,'справочные данные'!$A$18:$L$48,3,0) -> 1.4 | E56: =VLOOKUP(E$55,'справочные данные'!$A$18:$L$48,3,0) -> 1.4 | F56: =VLOOKUP(F$55,'справочные данные'!$A$18:$L$48,3,0) -> 1.4 | G56: =VLOOKUP(G$55,'справочные данные'!$A$18:$L$48,3,0) -> 1.4 | H56: =VLOOKUP(H$55,'справочные данные'!$A$18:$L$48,3,0) -> 1.4 | I56: =VLOOKUP(I$55,'справочные данные'!$A$18:$L$48,3,0) -> 1.4 | J56: =VLOOKUP(J$55,'справочные данные'!$A$18:$L$48,3,0) -> 1.4 | K56: =VLOOKUP(K$55,'справочные данные'!$A$18:$L$48,3,0) -> 1.4
A57: навеска займет в заторе (л) | B57: =(1/B$56)*B$58 -> 0 | C57: =(1/C$56)*C$58 -> 6.25 | D57: =(1/D$56)*D$58 -> 0 | E57: 0 | F57: 0 | G57: 0 | H57: 0 | I57: 0 | J57: 0 | K57: 0
A58: вес сырья в закладке в кг | B58: =IF(главная_страница!$B4="сырье не выбрано","0",главная_страница!$C4) -> 0 | C58: =IF(главная_страница!$B5="сырье не выбрано","0",главная_страница!$C5) -> 10 | D58: =IF(главная_страница!$B6="сырье не выбрано","0",главная_страница!$C6) -> 0 | E58: =IF(главная_страница!$B7="сырье не выбрано","0",главная_страница!$C7) -> 0 | F58: =IF(главная_страница!$B8="сырье не выбрано","0",главная_страница!$C8) -> 0 | G58: =IF(главная_страница!$B9="сырье не выбрано","0",главная_страница!$C9) -> 0 | H58: =IF(главная_страница!$B10="сырье не выбрано","0",главная_страница!$C10) -> 0 | I58: =IF(главная_страница!$B11="сырье не выбрано","0",главная_страница!$C11) -> 0 | J58: =IF(главная_страница!$B12="сырье не выбрано","0",главная_страница!$C12) -> 0 | K58: =IF(главная_страница!$B13="сырье не выбрано","0",главная_страница!$C13) -> 0
A59: выход в литрах АС с 1 кг сырья | B59: =VLOOKUP(B$55,'справочные данные'!$A$18:$L$48,2,0) -> 0 | C59: =VLOOKUP(C$55,'справочные данные'!$A$18:$L$48,2,0) -> 0.1943359 | D59: =VLOOKUP(D$55,'справочные данные'!$A$18:$L$48,2,0) -> 0 | E59: =VLOOKUP(E$55,'справочные данные'!$A$18:$L$48,2,0) -> 0 | F59: =VLOOKUP(F$55,'справочные данные'!$A$18:$L$48,2,0) -> 0 | G59: =VLOOKUP(G$55,'справочные данные'!$A$18:$L$48,2,0) -> 0 | H59: =VLOOKUP(H$55,'справочные данные'!$A$18:$L$48,2,0) -> 0 | I59: =VLOOKUP(I$55,'справочные данные'!$A$18:$L$48,2,0) -> 0 | J59: =VLOOKUP(J$55,'справочные данные'!$A$18:$L$48,2,0) -> 0 | K59: =VLOOKUP(K$55,'справочные данные'!$A$18:$L$48,2,0) -> 0
A60: Выход АС в литрах с нашей навески | B60: =B$67*'справочные данные'!$B$20 -> 0 | C60: =C$67*'справочные данные'!$B$20 -> 1.9435 | D60: =D$67*'справочные данные'!$B$20 -> 0 | E60: =E$67*'справочные данные'!$B$20 -> 0 | F60: =F$67*'справочные данные'!$B$20 -> 0 | G60: =G$67*'справочные данные'!$B$20 -> 0 | H60: =H$67*'справочные данные'!$B$20 -> 0 | I60: =I$67*'справочные данные'!$B$20 -> 0 | J60: =J$67*'справочные данные'!$B$20 -> 0 | K60: =K$67*'справочные данные'!$B$20 -> 0
A61: сахара | B61: =((VLOOKUP(B$55,'справочные данные'!$A$18:$L$48,8,0))*B$58)/100 -> 0 | C61: =((VLOOKUP(C$55,'справочные данные'!$A$18:$L$48,8,0))*C$58)/100 -> 0.1 | D61: =((VLOOKUP(D$55,'справочные данные'!$A$18:$L$48,8,0))*D$58)/100 -> 0 | E61: =((VLOOKUP(E$55,'справочные данные'!$A$18:$L$48,8,0))*E$58)/100 -> 0 | F61: =((VLOOKUP(F$55,'справочные данные'!$A$18:$L$48,8,0))*F$58)/100 -> 0 | G61: =((VLOOKUP(G$55,'справочные данные'!$A$18:$L$48,8,0))*G$58)/100 -> 0 | H61: =((VLOOKUP(H$55,'справочные данные'!$A$18:$L$48,8,0))*H$58)/100 -> 0 | I61: =((VLOOKUP(I$55,'справочные данные'!$A$18:$L$48,8,0))*I$58)/100 -> 0 | J61: =((VLOOKUP(J$55,'справочные данные'!$A$18:$L$48,8,0))*J$58)/100 -> 0 | K61: =((VLOOKUP(K$55,'справочные данные'!$A$18:$L$48,8,0))*K$58)/100 -> 0
A62: крахмала в засыпи | B62: =((VLOOKUP(B$55,'справочные данные'!$A$18:$L$48,4,0))*B$58)/100 -> 0 | C62: =((VLOOKUP(C$55,'справочные данные'!$A$18:$L$48,4,0))*C$58)/100 -> 2.35 | D62: =((VLOOKUP(D$55,'справочные данные'!$A$18:$L$48,4,0))*D$58)/100 -> 0 | E62: =((VLOOKUP(E$55,'справочные данные'!$A$18:$L$48,4,0))*E$58)/100 -> 0 | F62: =((VLOOKUP(F$55,'справочные данные'!$A$18:$L$48,4,0))*F$58)/100 -> 0 | G62: =((VLOOKUP(G$55,'справочные данные'!$A$18:$L$48,4,0))*G$58)/100 -> 0 | H62: =((VLOOKUP(H$55,'справочные данные'!$A$18:$L$48,4,0))*H$58)/100 -> 0 | I62: =((VLOOKUP(I$55,'справочные данные'!$A$18:$L$48,4,0))*I$58)/100 -> 0 | J62: =((VLOOKUP(J$55,'справочные данные'!$A$18:$L$48,4,0))*J$58)/100 -> 0 | K62: =((VLOOKUP(K$55,'справочные данные'!$A$18:$L$48,4,0))*K$58)/100 -> 0
A63: белка | B63: =((VLOOKUP(B$55,'справочные данные'!$A$18:$L$48,5,0))*B$58)/100 -> 0 | C63: =((VLOOKUP(C$55,'справочные данные'!$A$18:$L$48,5,0))*C$58)/100 -> 1.51 | D63: =((VLOOKUP(D$55,'справочные данные'!$A$18:$L$48,5,0))*D$58)/100 -> 0 | E63: =((VLOOKUP(E$55,'справочные данные'!$A$18:$L$48,5,0))*E$58)/100 -> 0 | F63: =((VLOOKUP(F$55,'справочные данные'!$A$18:$L$48,5,0))*F$58)/100 -> 0 | G63: =((VLOOKUP(G$55,'справочные данные'!$A$18:$L$48,5,0))*G$58)/100 -> 0 | H63: =((VLOOKUP(H$55,'справочные данные'!$A$18:$L$48,5,0))*H$58)/100 -> 0 | I63: =((VLOOKUP(I$55,'справочные данные'!$A$18:$L$48,5,0))*I$58)/100 -> 0 | J63: =((VLOOKUP(J$55,'справочные данные'!$A$18:$L$48,5,0))*J$58)/100 -> 0 | K63: =((VLOOKUP(K$55,'справочные данные'!$A$18:$L$48,5,0))*K$58)/100 -> 0
A64: клетчатки | B64: =((VLOOKUP(B$55,'справочные данные'!$A$18:$L$48,9,0))*B$58)/100 -> 0 | C64: =((VLOOKUP(C$55,'справочные данные'!$A$18:$L$48,9,0))*C$58)/100 -> 4.36 | D64: =((VLOOKUP(D$55,'справочные данные'!$A$18:$L$48,9,0))*D$58)/100 -> 0 | E64: =((VLOOKUP(E$55,'справочные данные'!$A$18:$L$48,9,0))*E$58)/100 -> 0 | F64: =((VLOOKUP(F$55,'справочные данные'!$A$18:$L$48,9,0))*F$58)/100 -> 0 | G64: =((VLOOKUP(G$55,'справочные данные'!$A$18:$L$48,9,0))*G$58)/100 -> 0 | H64: =((VLOOKUP(H$55,'справочные данные'!$A$18:$L$48,9,0))*H$58)/100 -> 0 | I64: =((VLOOKUP(I$55,'справочные данные'!$A$18:$L$48,9,0))*I$58)/100 -> 0 | J64: =((VLOOKUP(J$55,'справочные данные'!$A$18:$L$48,9,0))*J$58)/100 -> 0 | K64: =((VLOOKUP(K$55,'справочные данные'!$A$18:$L$48,9,0))*K$58)/100 -> 0
A65: НПС | B65: =((VLOOKUP(B$55,'справочные данные'!$A$18:$L$48,6,0))*B$58)/100 -> 0 | C65: =((VLOOKUP(C$55,'справочные данные'!$A$18:$L$48,6,0))*C$58)/100 -> 1 | D65: =((VLOOKUP(D$55,'справочные данные'!$A$18:$L$48,6,0))*D$58)/100 -> 0 | E65: =((VLOOKUP(E$55,'справочные данные'!$A$18:$L$48,6,0))*E$58)/100 -> 0 | F65: =((VLOOKUP(F$55,'справочные данные'!$A$18:$L$48,6,0))*F$58)/100 -> 0 | G65: =((VLOOKUP(G$55,'справочные данные'!$A$18:$L$48,6,0))*G$58)/100 -> 0 | H65: =((VLOOKUP(H$55,'справочные данные'!$A$18:$L$48,6,0))*H$58)/100 -> 0 | I65: =((VLOOKUP(I$55,'справочные данные'!$A$18:$L$48,6,0))*I$58)/100 -> 0 | J65: =((VLOOKUP(J$55,'справочные данные'!$A$18:$L$48,6,0))*J$58)/100 -> 0 | K65: =((VLOOKUP(K$55,'справочные данные'!$A$18:$L$48,6,0))*K$58)/100 -> 0
A66: условного сахара | B66: =B$62*'справочные данные'!$D$4 -> 0 | C66: =C$62*'справочные данные'!$D$4 -> 2.749706745 | D66: =D$62*'справочные данные'!$D$4 -> 0 | E66: =E$62*'справочные данные'!$D$4 -> 0 | F66: =F$62*'справочные данные'!$D$4 -> 0 | G66: =G$62*'справочные данные'!$D$4 -> 0 | H66: =H$62*'справочные данные'!$D$4 -> 0 | I66: =I$62*'справочные данные'!$D$4 -> 0 | J66: =J$62*'справочные данные'!$D$4 -> 0 | K66: =K$62*'справочные данные'!$D$4 -> 0
A67: сахара всего | B67: =B$66+B$61 -> 0 | C67: =C$66+C$61 -> 2.849706745 | D67: =D$66+D$61 -> 0 | E67: 0 | F67: 0 | G67: 0 | H67: 0 | I67: 0 | J67: 0 | K67: 0
A68: коэфф. Пенообразования | B68: =VLOOKUP(B$55,'справочные данные'!$A$18:$L$48,11,0) -> 1.5 | C68: =VLOOKUP(C$55,'справочные данные'!$A$18:$L$48,11,0) -> 2 | D68: =VLOOKUP(D$55,'справочные данные'!$A$18:$L$48,11,0) -> 1.5 | E68: =VLOOKUP(E$55,'справочные данные'!$A$18:$L$48,11,0) -> 1.5 | F68: =VLOOKUP(F$55,'справочные данные'!$A$18:$L$48,11,0) -> 1.5 | G68: =VLOOKUP(G$55,'справочные данные'!$A$18:$L$48,11,0) -> 1.5 | H68: =VLOOKUP(H$55,'справочные данные'!$A$18:$L$48,11,0) -> 1.5 | I68: =VLOOKUP(I$55,'справочные данные'!$A$18:$L$48,11,0) -> 1.5 | J68: =VLOOKUP(J$55,'справочные данные'!$A$18:$L$48,11,0) -> 1.5 | K68: =VLOOKUP(K$55,'справочные данные'!$A$18:$L$48,11,0) -> 1.5
A69: промежуточный пересчет | B69: =B$68*B$58 -> 0 | C69: =C$68*C$58 -> 20 | D69: 0 | E69: 0 | F69: 0 | G69: 0 | H69: 0 | I69: 0 | J69: 0 | K69: 0
A70: Осп ед/г | B70: =VLOOKUP(B$55,'справочные данные'!$A$18:$L$48,12,0) -> 0 | C70: =VLOOKUP(C$55,'справочные данные'!$A$18:$L$48,12,0) -> 0 | D70: =VLOOKUP(D$55,'справочные данные'!$A$18:$L$48,12,0) -> 0 | E70: =VLOOKUP(E$55,'справочные данные'!$A$18:$L$48,12,0) -> 0 | F70: =VLOOKUP(F$55,'справочные данные'!$A$18:$L$48,12,0) -> 0 | G70: =VLOOKUP(G$55,'справочные данные'!$A$18:$L$48,12,0) -> 0 | H70: =VLOOKUP(H$55,'справочные данные'!$A$18:$L$48,12,0) -> 0 | I70: =VLOOKUP(I$55,'справочные данные'!$A$18:$L$48,12,0) -> 0 | J70: =VLOOKUP(J$55,'справочные данные'!$A$18:$L$48,12,0) -> 0 | K70: =VLOOKUP(K$55,'справочные данные'!$A$18:$L$48,12,0) -> 0
A71: Активных едениц | B71: =(B$70*1000)*B$58 -> 0 | C71: =(C$70*1000)*C$58 -> 0 | D71: 0 | E71: 0 | F71: 0 | G71: 0 | H71: 0 | I71: 0 | J71: 0 | K71: 0
A74: Активность общая | B74: =B48 -> 0 | C74: =IF(B74<=0,0,1) -> 0 | D74: =IF(C78=0,"сахарная",IF(C78=1,"зерновая без солода",IF(C78=3,"солодовая"))) -> зерновая без солода | E74: =IF(ISNA(IF(B79>0,"с добавкой сахара","")),"",IF(B79>0,"с добавкой сахара","")) -> 
A75: Крахмала в засыпи | B75: =B5 -> 2.35 | C75: =IF(B75>0,1,0) -> 1
B76: =SUM(B74:B75) -> 2.35 | C76: =IF((B75+B74)>B75,1,0) -> 0
A77: сахар | B77: =VLOOKUP(A77,главная_страница!B4:C13,2,0) -> 
B78: =IF(C78=0,-B77,0) -> 0 | C78: =SUM(C74:C77) -> 1
B79: =SUM(B77:B78) -> 
A85: Раз сусло содержит крахмал то нам потребуются ферменты.
A86: Раз сусло не содержит крахмал, то и ферменты нам без надобности))) Поэтому и в столбцах мы видим нули)))
A87: Раз у нас используется солод, то его ферменты тоже учитываются, как осахаривающие. Поэтому расход микробиологическиз ферментов указан как компенсация того чего не доосахарил и не разложил на компоненты сам солод. Если расход А и Г указан как "0", значит Ваш солод все осахарил сам! Если же указанна цифра отличная от "0", то солоду нужно "помочь" добавив эту навеску ферментов. Ферменты П и Ц считаются так, будто солод их вовсе не содержит. Такое вот допущение, для технологичности.
A88: Микробиологические ферменты указаны в данном случае с учетом их свежести. Со временем при хранении ферменты теряют активность. Обязательными ферментами являются А и Г. П и Ц факультативные.
A89: Как хорошо что не нужны ферменты! Меньше расходов))) Да и портятся они как говорят… Сам слышал! Во как… А сахарная брага и на НБК быстрее гонится и оборудование от нее отмывать легче… Но все же попробуйте зерновую! Она вкуснее)))))
A90: Общее содержание Ае в нашем солоде
A91: Они смогут осахарить крахмала (кг)
A92: Останется недоосахаренного крахмала (кг)
A93: Многовато выходит. Весь сахар не выбродит. Будут потери. Да и скорость брожения возрастет. Лучше бы увеличить гидромодуль или если объем тары не позволяет, применить более устойчивые к алкоголю дрожжи. В конце концов засыпи можно взять поменьше. Дело ваше.
A94: Расчетная спиртуозность не превышает предельной для дрожжей. Должно все полно выбродить.
A95: Ваши дрожжи такое не сбродят до конца… Будет недоброд. В переводе на сахар он составит (кг):
A96: В целом затор сбаллансирован. Принципиальных замечаний нет.
A97: Реальное содержание спирта в браге может составить всего (л) :
A98: А после перегонки и того меньше …
A100: =IF(главная_страница!$B4="сырье не выбрано",1,2) -> 1
A101: =IF(главная_страница!$B5="сырье не выбрано",1,2) -> 2
A102: =IF(главная_страница!$B6="сырье не выбрано",1,2) -> 1
A103: =IF(главная_страница!$B7="сырье не выбрано",1,2) -> 1
A104: =IF(главная_страница!$B8="сырье не выбрано",1,2) -> 1
A105: =IF(главная_страница!$B9="сырье не выбрано",1,2) -> 1
A106: =IF(главная_страница!$B10="сырье не выбрано",1,2) -> 1
A107: =IF(главная_страница!$B11="сырье не выбрано",1,2) -> 1
A108: =IF(главная_страница!$B12="сырье не выбрано",1,2) -> 1
A109: =IF(главная_страница!$B13="сырье не выбрано",1,2) -> 1

Sheet отчет
A1: Затор № | F1: Дата | G1: =главная_страница!C1 -> 2016-03-10T13:00:21
A3: Название:
A5: Состав засыпи:
A7: 1 | B7: =главная_страница!$B36 -> - | F7: =главная_страница!$C36 -> - | G7: =главная_страница!$D36 -> -
A8: 2 | B8: =главная_страница!$B37 -> отруби пшеничные | F8: =главная_страница!$C37 -> 10 | G8: =главная_страница!$D37 -> кг
A9: 3 | B9: =главная_страница!$B38 -> - | F9: =главная_страница!$C38 -> - | G9: =главная_страница!$D38 -> -
A10: 4 | B10: =главная_страница!$B39 -> - | F10: =главная_страница!$C39 -> - | G10: =главная_страница!$D39 -> -
A11: 5 | B11: =главная_страница!$B40 -> - | F11: =главная_страница!$C40 -> - | G11: =главная_страница!$D40 -> -
A12: 6 | B12: =главная_страница!$B41 -> - | F12: =главная_страница!$C41 -> - | G12: =главная_страница!$D41 -> -
A13: 7 | B13: =главная_страница!$B42 -> - | F13: =главная_страница!$C42 -> - | G13: =главная_страница!$D42 -> -
A14: 8 | B14: =главная_страница!$B43 -> - | F14: =главная_страница!$C43 -> - | G14: =главная_страница!$D43 -> -
A15: 9 | B15: =главная_страница!$B44 -> - | F15: =главная_страница!$C44 -> - | G15: =главная_страница!$D44 -> -
A17: Итого: | B17: =главная_страница!A47 -> 10 | C17: кг
B18: =главная_страница!A49 -> 6.25 | C18: литров
A20: Вода: | B20: =главная_страница!D51 -> 50 | C20: литров
A22: Пеногасителя: | C22: =главная_страница!D57 -> 0 | D22: мл
A24: Ферменты:
A26: фермент | C26: вес (г) | E26: объем (мл)
A27: Амилосубтилин | C27: =главная_страница!$F20 -> 6.11 | E27: =главная_страница!$F25 -> 10.90635
A28: Глюкавамарин | C28: =главная_страница!$F21 -> 9.87 | E28: =главная_страница!$F26 -> 18.26937
A29: Протосубтилин | C29: =главная_страница!$F22 -> 12.684 | E29: =главная_страница!$F27 -> 18.64548
A30: Целлолюкс | C30: =главная_страница!$F23 -> 80.4 | E30: =главная_страница!$F28 -> 118.188
A32: Дпржжи:
A34: =главная_страница!E30 -> пресованные хлебопекарские | F34: =главная_страница!F30 -> 375 | H34: грамм
A36: Сусло:
A38: Объем сусла | E38: =главная_страница!F13 -> 56.25
A39: Объем тары под это сусло | E39: =главная_страница!F17 -> 70.3125
A40: Гидромодуль | E40: =главная_страница!F16 -> 5
A41: Сахаристость в % мас | E41: =главная_страница!F14 -> 5.066145324
A43: Брага и выход АС:
A45: Спиртуозность браги | G45: =главная_страница!F15 -> 3.057773333
A46: Возможный выход АС с засыпи | G46: =главная_страница!F18 -> 1.7199975
A47: Выход АС с засыпи с учетом потерь на перегонку | G47: =главная_страница!F44 -> 1.633997625
